Cogmind - Beta 10.2 @@@ ROGUE MODE // 2021.10.17 @ 01:17:46 Player: Wakanaka Result: Destroyed by G-47 Trooper with Particle Gun Performance ------------- Evolutions (0) 0 Regions Visited (2) 400 Robots Destroyed (29) 145 Value Destroyed (424) 424 Prototype IDs (2) 40 Alien Tech Used (0) 0 Bonus (0) 0 TOTAL SCORE: 1009 Bonus ------- None Cogmind --------- Core Integrity 0/250 Matter 274/300 Energy 100/100 System Corruption 1% Temperature Cool (71) Movement Walking (210) Ox3 Location -10/Mines Parts ------- > --- POWER (1) -------- (None) > --- PROPULSION (2) --- Aluminum Leg > --- UTILITY (2) ------ Large Storage Unit Large Storage Unit > --- WEAPON (2) ------- Small Laser Assault Rifle > --- INVENTORY (16) --- Ion Engine Aluminum Leg Aluminum Leg High-capacity Matter Pod (200) High-capacity Matter Pod (200) Structural Scanner Visual Processing Unit Sensor Array Signal Interpreter Improved Terrain Scanner Seismic Analyzer Terrain Scan Processor Targeting Computer Peak State ------------ > --- POWER ------------ Ion Engine > --- PROPULSION ------- Wheel Wheel > --- UTILITY ---------- Medium Storage Unit Improved Terrain Scanner > --- WEAPON ----------- Beam Cannon Assault Rifle > --- INVENTORY -------- Light Ion Engine Small Storage Unit Medium Matter Pod Weight Redist. System Sensor Array Signal Interpreter Improved Terrain Scanner Seismic Analyzer [Rating: 9] Favorites ----------- Power Ion Engine Engine Ion Engine Propulsion Aluminum Leg Leg Aluminum Leg Wheel Wheel Utility Large Storage Unit Device Improved Terrain Scanner Storage Large Storage Unit Weapon Assault Rifle Energy Gun Particle Gun Energy Cannon Beam Cannon Ballistic Gun Assault Rifle Special Melee Weapon Datajack Build | -11 -10 -10 ------- Run | Scr Mat Min Slots Evolved . | . . . Power . | . . . Propulsion . | . . . Utility . | . . . Weapon . | . . . Parts Attached 23 | 9 13 1 Power 3 | 2 1 . Engine 3 | 2 1 . Core . | . . . Reactor . | . . . Propulsion 7 | 2 5 . Treads . | . . . Leg 3 | . 3 . Wheel 4 | 2 2 . Hover . | . . . Flight . | . . . Utility 5 | 2 3 . Device 1 | 1 . . Storage 4 | 1 3 . Processor . | . . . Hackware . | . . . Protection . | . . . Artifact . | . . . Weapon 8 | 3 4 1 Energy Gun 4 | 1 2 1 Energy Cannon 1 | . 1 . Ballistic Gun 2 | 2 . . Ballistic Cannon . | . . . Launcher . | . . . Special Weapon . | . . . Impact Weapon . | . . . Slashing Weapon . | . . . Piercing Weapon . | . . . Special Melee Weapon 1 | . 1 . Unidentified Prototypes . | . . . Parts Lost 5 | . 2 3 Power 1 | . . 1 Propulsion 2 | . 1 1 Utility . | . . . Weapon 2 | . 1 1 Highest Loss Streak 2 | . 1 2 Average Slot Usage (%) 93 | . 93 94 Engine 14 | . 14 14 Leg 11 | . 9 25 Wheel 12 | . 14 . Device 6 | . 7 . Storage 19 | . 18 28 Energy Gun 5 | . 4 11 Energy Cannon 6 | . 6 . Ballistic Gun 16 | . 16 14 Naked Turns . | . . . Heaviest Build 42 | 14 42 42 Greatest Support 32 | 20 32 20 Greatest Overweight (x) 3 | 1 2 3 Average Overweight (x) . | . 1 2 Largest Inventory Capacity 16 | 6 16 16 Average Capacity 10 | 5 10 16 Most Carried 14 | 6 14 14 Average Carried 8 | 3 8 12 Final Capacity 16 | 6 16 16 Final Carried 13 | 6 12 13 Class Distribution -------------------- 57% | Mutant 42% | Scavenger-Mutant Dominant Class ---------------- Mutant | -10/Materials Scavenger-Mutant | -10/Mines Resources | -11 -10 -10 ----------- Run | Scr Mat Min Matter Collected 1086 | 436 565 85 Remotely . | . . . Salvage Created 927 | 209 587 131 Parts 70 | 18 47 5 Haulers Intercepted 1 | . 1 . Recyclers Shooed 2 | . 1 1 Parts Field Recycled . | . . . Retrieved Matter . | . . . Parts Self-Destructed . | . . . Prevented . | . . . Kills | -11 -10 -10 ------- Run | Scr Mat Min Combat Hostiles Destroyed 11 | . 10 1 Guns 6 | . 5 1 Cannons 5 | . 5 . Classes Destroyed 9 | 3 6 . Worker 2 | 2 . . Builder 2 | . 2 . Tunneler 5 | 5 . . Hauler 1 | . 1 . Recycler 4 | 1 2 1 Operator 1 | . 1 . Watcher 3 | . 3 . Swarmer 5 | . 5 . Grunt 6 | . 5 1 Best Kill Streak 5 | 5 3 2 Combat Bots Only 3 | . 3 1 Max Kills in Single Turn 1 | 1 1 1 Gunslinging . | . . . Exploded . | . . . Melee . | . . . Uniques/NPCs Destroyed . | . . . Combat | -11 -10 -10 -------- Run | Scr Mat Min Damage Taken 886 | . 515 371 Core 262 | . 161 101 Absorbed by Shields . | . . . Core Remaining (%) 100 | 100 . . Volleys Fired 103 | 16 69 18 Largest 2 | 2 2 2 Hottest 85 | 40 85 85 Shots Fired 197 | 32 137 28 Gun 165 | 32 105 28 Cannon 32 | . 32 . Launcher . | . . . Special . | . . . Kinetic 123 | 32 73 18 Thermal 74 | . 64 10 Explosive . | . . . Electromagnetic . | . . . Robot Hit Streak 9 | 8 9 4 Robot Miss Streak 3 | 3 3 3 Penetration Max . | . . . Secondary Targets 1 | . 1 . Max Gunslinging Chain 1 | . 1 . Shots Hit Robots 107 | 17 71 19 Core Hits 42 | 9 27 6 Critical Hits . | . . . Critical Kills . | . . . Critical Parts Destroyed . | . . . Melee Attacks . | . . . Impact . | . . . Slashing . | . . . Piercing . | . . . Sneak Attacks . | . . . Combat Hostiles . | . . . Follow-up Attacks . | . . . Damage Inflicted 1543 | 208 1062 273 Guns 1227 | 208 746 273 Cannons 315 | . 315 . Explosions . | . . . Melee . | . . . Ramming 1 | . 1 . Kinetic 844 | 208 450 186 Thermal 698 | . 611 87 Explosive . | . . . Electromagnetic . | . . . Impact . | . . . Slashing . | . . . Piercing . | . . . Highest Corruption 1 | . 1 1 Average Corruption 1 | . 1 1 Corruption Purged . | . . . Effects 9 | . 7 2 Message Errors 3 | . 2 1 Data Loss (minor) 4 | . 3 1 Targeting Errors 2 | . 2 . Overload Shots . | . . . Overflow Damage 15 | . 15 . Projectiles 15 | . 15 . Explosions . | . . . Melee . | . . . Knockbacks . | . . . Impact . | . . . Kinetic . | . . . Secondary . | . . . Self-Inflicted Damage . | . . . Shots . | . . . Rammed . | . . . Targets Rammed 1 | . 1 . Kicked 1 | . 1 . Crushed . | . . . Highest Temperature 462 | 6 462 82 Average Temperature 97 | 6 106 39 Received Heat Transfer 318 | . 108 210 Effects 2 | . 2 . Energy Bleed 1 | . 1 . Matter Decay 1 | . 1 . Siege Activations . | . . . Robots Corrupted . | . . . Combat Hostiles . | . . . Parts Fried . | . . . Impact Corruptions . | . . . Robots Melted . | . . . Combat Hostiles . | . . . Parts Melted 3 | . 3 . Heat Transferred 1593 | . 1406 187 Parts Sabotaged . | . . . Parts Stolen . | . . . Parts Stripped . | . . . Power Chain Reactions . | . . . Missiles Intercepted . | . . . Alert | -11 -10 -10 ------- Run | Scr Mat Min Peak Influence 194 | 40 194 42 Initial 37 | . 26 37 Average 58 | 19 66 36 Maximum Alert Level . | . . . Low Security (%) 100 | 100 100 100 Level 1 . | . . . Level 2 . | . . . Level 3 . | . . . Level 4 . | . . . Level 5 . | . . . High Security . | . . . Max Security . | . . . Squads Dispatched 4 | . 4 . Investigation 2 | . 2 . Extermination . | . . . Reinforcement 2 | . 2 . Assault . | . . . Garrison . | . . . Intercept . | . . . Construction Impeded . | . . . Haulers Reinforced . | . . . Stealth | -11 -10 -10 --------- Run | Scr Mat Min Distress Signals 1 | . 1 . Communications Jammed . | . . . Distress Signals . | . . . Times Spotted 28 | . 26 2 Peak Tracking Total 4 | . 4 2 Tactical Retreats . | . . . Traps | -11 -10 -10 ------- Run | Scr Mat Min Traps Triggered 2 | . 2 . Indirectly . | . . . Trap Hack Attempts . | . . . Triggered . | . . . Disarmed . | . . . Reprogrammed . | . . . Reused . | . . . Traps Extracted . | . . . Installed . | . . . Triggered . | . . . Machines | -11 -10 -10 ---------- Run | Scr Mat Min Machines Disabled 4 | . 4 . Max in Single Turn 1 | . 1 . Machines Sabotaged . | . . . Garrisons Compromised . | . . . Overloaded Fab Kills . | . . . Fab Network Shutdowns . | . . . Hacking | -11 -10 -10 --------- Run | Scr Mat Min Machines Accessed 5 | . 5 . Terminals 3 | . 3 . Fabricators . | . . . Repair Stations 1 | . 1 . Recycling Units 1 | . 1 . Scanalyzers . | . . . Garrison Access . | . . . Total Hacks 11 | . 11 . Successful 9 | . 9 . Failed 2 | . 2 . Catastrophic . | . . . Database Lockouts . | . . . Manual . | . . . Terminals 7 | . 7 . Fabricators . | . . . Repair Stations 3 | . 3 . Recycling Units 1 | . 1 . Scanalyzers . | . . . Garrison Access . | . . . Terminal Hacks 6 | . 6 . Record 3 | . 3 . Prototype ID Bank 1 | . 1 . Emergency Access Points 1 | . 1 . Locate Traps 1 | . 1 . Fabricator Hacks . | . . . Repair Station Hacks 2 | . 2 . Scan Component 1 | . 1 . Repair 1 | . 1 . Recycling Unit Hacks 1 | . 1 . Report Inventory 1 | . 1 . Scanalyzer . | . . . Garrison Access Hacks . | . . . Unauthorized Hacks . | . . . Terminals . | . . . Fabricators . | . . . Repair Stations . | . . . Recycling Units . | . . . Scanalyzers . | . . . Garrison Access . | . . . Data Cores Recovered . | . . . Used . | . . . Hacking Detections 3 | . 3 . Full Trace Events 2 | . 2 . Feedback Events . | . . . Feedback Blocked . | . . . Robot Schematics Acquired . | . . . Robots Built . | . . . Matter . | . . . Time . | . . . Total Robot Build Rating . | . . . Part Schematics Acquired . | . . . Parts Built . | . . . Matter . | . . . Time . | . . . Total Part Build Rating . | . . . Parts Repaired 1 | . 1 . Time 32 | . 32 . Parts Recycled . | . . . Recycled Matter . | . . . Retrieved Matter . | . . . Retrieved Components . | . . . Parts Scanalyzed . | . . . Part Schematics Acquired . | . . . Parts Damaged . | . . . Bothacking | -11 -10 -10 ------------ Run | Scr Mat Min Used RIF Installer . | . . . Robots Hacked . | . . . Non-combat . | . . . Combat . | . . . Robot Hacks Applied . | . . . Relay Couplers Released . | . . . Robots Rewired . | . . . Allies Hacked . | . . . Hacks Repelled . | . . . Allies | -11 -10 -10 -------- Run | Scr Mat Min Total Allies . | . . . Largest Group . | . . . Highest-Rated Group . | . . . Highest-Rated Ally . | . . . Total Orders . | . . . Ally Attacks . | . . . Total Damage . | . . . Kills . | . . . Allies Corrupted . | . . . Allies Melted . | . . . Intel | -11 -10 -10 ------- Run | Scr Mat Min Robot Analysis Total . | . . . Derelict Logs Recovered . | . . . Drone Launches . | . . . Drone Recoveries . | . . . Exploration | -11 -10 -10 ------------- Run | Scr Mat Min Turns Passed 1801 | 171 1431 199 Spaces Moved 801 | 129 591 81 Core 8 | 8 . . Treads . | . . . Legs 265 | . 184 81 Wheels 528 | 121 407 . Hover . | . . . Flight . | . . . Fastest Speed 50 | 50 80 150 Average Speed 123 | 78 125 180 Slowest Speed 210 | 100 180 210 Overloaded Moves . | . . . Propulsion Burnouts . | . . . Robots Hopped . | . . . Cave-ins Triggered . | . . . Exploration Rate (%) 38 | 3 95 17 Regions Visited 2 Branch Regions 1 Pre-discovered Areas . | . . . Known Exits Taken . | . . . Unknown Exits Taken 2 | 1 1 . Scrap Searched . | . . . Spaces Dug . | . . . Terrain Destroyed . | . . . Melee . | . . . Projectile . | . . . AOE . | . . . Terrain Rammed . | . . . Walls Destroyed . | . . . Machines Disabled . | . . . Actions | -11 -10 -10 --------- Run | Scr Mat Min Total 1421 | 166 1149 106 Wait 444 | . 440 4 Move 799 | 128 590 81 Hop . | . . . Pick Up 33 | 12 19 2 Fast Attach 6 | 1 5 . Attach 10 | 7 2 1 Detach 1 | 1 . . Swap 7 | 1 6 . Drop 17 | . 17 . Fire 103 | 16 69 18 Melee . | . . . Ram . | . . . Kick 1 | . 1 . Crush . | . . . Escape Stasis . | . . . Rewire . | . . . Trap . | . . . Miscellaneous . | . . . Route ------- -11/Scrapyard -10/Materials (discovered 4 exits: [*Mat x3] / [*Min]) -10/Mines History --------- Turn | Location | Event 10 | -11/Scrapyard | Discovered new exit (range 15) 172 | -11/Scrapyard | Entered Materials 261 | -10/Materials | Discovered new exit (range 16) 306 | -10/Materials | Build established: Mutant 812 | -10/Materials | Discovered new exit (range 14) 955 | -10/Materials | Core integrity fell below 50% 996 | -10/Materials | Repaired Imp. Terrain Scanner 1051 | -10/Materials | Discovered new exit (range 4) 1191 | -10/Materials | Discovered new exit (range 7) 1420 | -10/Materials | Build established: Scavenger-Mutant 1603 | -10/Materials | Entered Mines 1763 | -10/Mines | Core integrity fell below 20% 1802 | -10/Mines | Destroyed by G-47 Trooper with Particle Gun Last Messages --------------- 01629_ System corrupted: Component data lost. 01656_ Extracted 31 matter. 01657_ Acquired Hcp. Matter Pod. 01658_ Extracted 31 matter. 01679_ |ZCX|MD151M F YI DDAP3Z 5OD/ZOABAGR|4 01709_ K-01 Serf collects debris. 01752_ Particle Gun destroyed. 01764_ Aluminum Leg destroyed. 01767_ G-34 Mercenary destroyed. 01775_ Acquired 23 matter. 01776_ R-06 Scavenger collects Heat Sink. 01777_ K-01 Serf cleans the Laser Drill. 01779_ Acquired Sml. Laser. 01783_ K-01 Serf collects debris. 01786_ K-01 Serf cleans the Laser Drill. 01787_ R-06 Scavenger destroyed. 01789_ K-01 Serf cleans the Laser Drill. 01789_ R-06 Scavenger collects Sml. Storage Unit. 01793_ R-06 Scavenger collects Com. Wheel. 01800_ Ion Engine destroyed. Map ----- +----------------------------------------------------+ | ??????????????????????????????????????????? | | ??????????????????????????????????????????? | | ??????????????????????????????????????????? | | ??????????????????????????????????????????? | | ??????????????????????????????????????????? | | ??????????????????????????????????????????? | | ??????????????????????????????????????????? | | ??????????????????????????????????????????? | | ??????????????????????????????????????????? | | ??????????????????????????????????????????? | | ??????????????????????????????????????????? | | ??????????????????????????????????????????? | | ??????????????????????????????????????????? | | ??????????????????????????????????????????? | | ?????????????????#????????????????????????? | | ????????????????? ? ????????????????????? | | ????????????????? """ ????????????????????? | | ????????????????? """ ????????????????????? | | ????????????????? """?????????????????????? | | ????????????????? ?????????????????????? | | ????????????????? #?????????????????????? | | ?????????????????# #?????????????????????? | | ?????????????????# #?????????????????????? | | ??????????????#### #?????????????????????? | | ?????????????## #?????????????????????? | | ?????????????# @ #????? #??????????????? | | ?????????????# g%###### #??????????????? | | ?????????????# % #??????????????? | | ?????????????## #?????? ???????? | | ??????????????## #######????# ??????? | | ???????????????# ##????????# ??????? | | ???????????????## ##??????# ??????? | | ????????????????### ###??## #??????? | | ??????????????????## ### #????????? | | ???????????????????# ####??????? | | ???????????????????## #??????? | | ????????????????????## ????? | | ????????????####?????# ### ??????? | | ???????????## ##????## # ####??????????? | | ????????#### ####??# ## #?????????????? | | ????????# ##?# ## #?????????????? | | ????????# !!! #?# #?????????????? | | ????????# ! ! ###### #?????????????? | | ????????# !!! ### ##??# #?????????????? | | ??????### !!!! #?## #??# #?????????????? | | ??????# # #?## ##?# #?????????????? | | ??????# ######### ### #?????????????? | | ??????# ##??## #?????????????? | | ??????## #### #######?????????????? | | ???????# ####???????????????????? | +----------------------------------------------------+ Best States ------------- Heat Dissipation 25 Energy Generation 10 Energy Capacity 250 Matter Stores 300 Matter Capacity 300 Sight Range 16 Terrain Scan Range 16 Terrain Scan Density 10 Evasion (%) 50 Item Schematics ----------------- None Robot Schematics ------------------ None Fabricated ------------ Nothing Alien Tech Used ----------------- None Achievements -------------- None Challenges ------------ None Game ------ Seed BombGodJammer Manual? 0 Play Time 00:24:07 Cumulative 25.6 hours Start 2021.10.17 @ 00:53:27 End 2021.10.17 @ 01:17:46 Sessions 1 Manual Loads 0 Difficulty Rogue Special Mode None Game No. 28 Rogue 28 Adventurer 0 Explorer 0 Win Type - Total 0 Types 0/0/0/0/0/0/0/0/0 Lore% 21 Gallery% 28 Achievement% 21 Wizard Run 0 Options --------- ASCII 0 Keyboard 0 Movement Mouse Keybinds 0 Fullscreen 1 Font 18/SmallcapsGlow Map View 76x50 Tactical HUD 1 Map Filters NONE Filters NONE Steam 1 RUN: ae0ea6d7-8535-46e5-9cd9-c45571e64dd0